lending/lending_fUSD_20250621
["ID","MTS","AMOUNT","RATE_DAILY","PERIOD"]
[366817808,1750473046993,-1148.19,0.00026528,4]
[366817809,1750473047002,-2050.35,0.00026528,4]
[366817810,1750473047012,-490.0,0.00026528,4]
[366817811,1750473047022,-1830.84,0.00026528,4]
[366817812,1750473047031,-490.0,0.00026528,4]
[366817813,1750473047042,-584.67,0.00026528,4]
[366817814,1750473047051,-490.0,0.00026528,4]
[366817815,1750473047060,-994.56,0.00026528,4]
[366817816,1750473047070,-3765.2893972,0.00026531,2]
[366817817,1750473047079,-490.0,0.00026537,4]
[366817818,1750473047089,-503.09254525,0.00026537,4]
[366817819,1750473047098,-490.0,0.00026537,4]
[366817820,1750473047108,-490.0,0.00026537,4]
[366817821,1750473047118,-490.0,0.00026537,4]
[366817822,1750473047127,-490.0,0.00026537,4]
[366817823,1750473047137,-490.0,0.00026537,4]
[366817824,1750473047147,-490.0,0.00026537,4]
[366817825,1750473047157,-490.0,0.00026537,4]
[366817826,1750473047167,-629.41598961,0.00026537,4]
[366817827,1750473047176,-343.76315322,0.00026537,4]
[366817828,1750473047186,-490.0,0.00026537,4]
[366817829,1750473047195,-490.0,0.00026537,4]
[366817830,1750473047205,-490.0,0.00026537,4]
[366817831,1750473047215,-490.0,0.00026537,4]
[366817832,1750473047225,-490.0,0.00026537,4]
[366817833,1750473047235,-503.83172073,0.00026537,4]
[366817834,1750473047244,-490.0,0.00026537,4]
[366817835,1750473047254,-490.0,0.00026537,4]
[366817836,1750473047264,-506.11683588,0.00026537,4]
[366817837,1750473047273,-490.0,0.00026537,4]
[366817838,1750473047283,-490.0,0.00026537,4]
[366817839,1750473047293,-490.0,0.00026537,4]
[366817840,1750473047302,-490.0,0.00026537,4]
[366817841,1750473047314,-501.25169526,0.00026537,4]
[366817842,1750473047326,-490.0,0.00026537,4]
[366817843,1750473047337,-490.0,0.00026537,4]
[366817844,1750473047347,-405.43449414,0.00026537,4]
[366817845,1750473047358,-501.1,0.00026537,4]
[366817846,1750473047368,-502.24652822,0.00026537,4]
[366817847,1750473047377,-490.0,0.00026537,4]
[366817848,1750473047386,-490.0,0.00026537,4]
[366817849,1750473047396,-595.49180233,0.00026537,4]
[366817850,1750473047405,-490.0,0.00026537,4]
[366817851,1750473047414,-490.0,0.00026537,4]
[366817852,1750473047424,-490.0,0.00026537,4]
[366817853,1750473047433,-490.0,0.00026537,4]
[366817854,1750473047442,-490.0,0.00026537,4]
[366817855,1750473047452,-490.0,0.00026537,4]
[366817856,1750473047462,-490.0,0.00026537,4]
[366817857,1750473047472,-515.9393366,0.00026537,4]
[366817858,1750473047482,-491.2070748,0.00026537,4]
[366817859,1750473047491,-490.0,0.00026537,4]
[366817860,1750473047501,-490.0,0.00026537,4]
[366817861,1750473047510,-490.0,0.00026537,4]
[366817862,1750473047519,-490.0,0.00026537,4]
[366817863,1750473047529,-490.0,0.00026537,4]
[366817864,1750473047538,-514.32064835,0.00026537,4]
[366817865,1750473047548,-490.0,0.00026537,4]
[366817866,1750473047558,-519.98042906,0.00026537,4]
[366817867,1750473047568,-490.0,0.00026537,4]
[366817868,1750473047578,-210.0,0.00026537,4]
[366817869,1750473047588,-497.97045707,0.00026537,4]
[366817870,1750473047597,-490.0,0.00026537,4]
[366817871,1750473047606,-573.3158886,0.00026537,4]
[366817872,1750473047616,-490.0,0.00026537,4]
[366817873,1750473047626,-492.5607535,0.00026537,4]
[366817874,1750473047636,-490.0,0.00026537,4]
[366817875,1750473047645,-534.18526724,0.00026537,4]
[366817876,1750473047655,-490.0,0.00026537,4]
[366817877,1750473047664,-490.0,0.00026537,4]
[366817878,1750473047675,-511.70337671,0.00026537,4]
[366817879,1750473047684,-490.0,0.00026537,4]
[366817880,1750473047695,-490.0,0.00026537,4]
[366817881,1750473047704,-531.98848062,0.00026537,4]
[366817882,1750473047715,-344.93898322,0.00026537,4]
[366817883,1750473047725,-490.0,0.00026537,4]
[366817884,1750473047734,-548.52674977,0.00026537,4]
[366817885,1750473047744,-490.0,0.00026537,4]
[366817886,1750473047754,-2128.807,0.00026537,2]
[366817887,1750473047764,-526.13194587,0.00026537,4]
[366817888,1750473047773,-513.4806107,0.00026537,4]
[366817889,1750473047783,-490.0,0.00026537,4]
[366817890,1750473047794,-512.28903891,0.00026537,4]
[366817891,1750473047805,-527.15988472,0.00026537,4]
[366817892,1750473047815,-490.0,0.00026537,4]
[366817893,1750473047825,-490.0,0.00026537,4]
[366817894,1750473047835,-490.0,0.00026537,4]
[366817895,1750473047845,-212.64343032,0.00026537,4]
[366817896,1750473047855,-513.28328653,0.00026537,4]
[366817897,1750473047866,-490.0,0.00026537,4]
[366817898,1750473047876,-490.0,0.00026537,4]
[366817899,1750473047886,-490.0,0.00026537,4]
[366817900,1750473047896,-490.0,0.00026537,4]
[366817901,1750473047906,-490.0,0.00026537,4]
[366817902,1750473047916,-490.0,0.00026537,4]
[366817903,1750473047926,-490.0,0.00026537,4]
[366817904,1750473047937,-490.0,0.00026537,4]
[366817905,1750473047946,-490.0,0.00026537,4]
[366817906,1750473047958,-353.63739117,0.00026537,4]
[366817907,1750473047968,-490.0,0.00026537,4]
[366817908,1750473047978,-503.4718707,0.00026537,4]
[366817909,1750473047988,-490.0,0.00026537,4]
[366817910,1750473047997,-490.0,0.00026537,4]
[366817911,1750473048007,-490.0,0.00026537,4]
[366817912,1750473048016,-490.0,0.00026537,4]
[366817913,1750473048026,-490.0,0.00026537,4]
[366817914,1750473048036,-490.0,0.00026537,4]
[366817915,1750473048046,-490.0,0.00026537,4]
[366817916,1750473048056,-490.0,0.00026537,4]
[366817917,1750473048065,-490.0,0.00026537,4]
[366817918,1750473048076,-490.0,0.00026537,4]
[366817919,1750473048086,-490.0,0.00026537,4]
[366817920,1750473048097,-1059.33,0.00026537,4]
[366817921,1750473048106,-468.23015577,0.00026537,4]
[366817922,1750473048116,-490.0,0.00026537,4]
[366817923,1750473048126,-953.29,0.00026537,4]
[366817924,1750473048136,-490.0,0.00026537,4]
[366817925,1750473048146,-490.0,0.00026537,4]
[366817926,1750473048156,-490.0,0.00026537,4]
[366817927,1750473048165,-490.0,0.00026537,4]
[366817928,1750473048175,-490.0,0.00026537,4]
[366817929,1750473048185,-490.0,0.00026537,4]
[366817930,1750473048194,-490.0,0.00026537,4]
[366817931,1750473048204,-490.0,0.00026537,4]
[366817932,1750473048214,-490.0,0.00026537,4]
[366817933,1750473048224,-898.39,0.00026537,4]
[366817934,1750473048234,-490.0,0.00026537,4]
[366817935,1750473048244,-490.0,0.00026537,4]
[366817936,1750473048253,-490.0,0.00026537,4]
[366817937,1750473048263,-490.0,0.00026537,4]
[366817938,1750473048273,-490.0,0.00026537,4]
[366817939,1750473048283,-490.0,0.00026537,4]
[366817940,1750473048293,-244.15356716,0.00026537,4]
[366817941,1750473048303,-490.0,0.00026537,4]
[366817942,1750473048312,-693.35,0.00026537,4]
[366817943,1750473048323,-490.0,0.00026537,4]
[366817944,1750473048337,-507.8320276,0.00026537,4]
[366817945,1750473048347,-490.0,0.00026537,4]
[366817946,1750473048357,-490.0,0.00026537,4]
[366817947,1750473048368,-490.0,0.00026537,4]
[366817948,1750473048379,-490.0,0.00026537,4]
[366817949,1750473048389,-636.75,0.00026537,4]
[366817950,1750473048399,-509.80377702,0.00026537,4]
[366817951,1750473048409,-490.0,0.00026537,4]
[366817952,1750473048420,-866.09,0.00026537,4]
[366817953,1750473048429,-490.0,0.00026537,4]
[366817954,1750473048439,-490.0,0.00026537,4]
[366817955,1750473048448,-1049.44,0.00026537,4]
[366817956,1750473048459,-490.0,0.00026537,4]
[366817957,1750473048468,-490.0,0.00026537,4]
[366817958,1750473048478,-490.0,0.00026537,4]
[366817959,1750473048488,-490.0,0.00026537,4]
[366817960,1750473048498,-490.0,0.00026537,4]
[366817961,1750473048508,-490.0,0.00026537,4]
[366817962,1750473048518,-490.0,0.00026537,4]
[366817963,1750473048527,-529.89837333,0.00026537,4]
[366817964,1750473048536,-1768.34,0.00026537,4]
[366817965,1750473048546,-490.0,0.00026537,4]
[366817966,1750473048555,-487.90617792,0.00026537,4]
[366817967,1750473048566,-490.0,0.00026537,4]
[366817968,1750473048575,-490.0,0.00026537,4]
[366817969,1750473048585,-490.0,0.00026537,4]
[366817970,1750473048595,-490.0,0.00026537,4]
[366817971,1750473048605,-835.37,0.00026537,4]
[366817972,1750473048614,-490.0,0.00026537,4]
[366817973,1750473048624,-656.8,0.00026537,4]
[366817974,1750473048634,-490.0,0.00026537,4]
[366817975,1750473048643,-490.0,0.00026537,4]
[366817976,1750473048653,-490.0,0.00026537,4]
[366817977,1750473048663,-490.0,0.00026537,4]
[366817978,1750473048673,-490.0,0.00026537,4]
[366817979,1750473048682,-490.0,0.00026537,4]
[366817980,1750473048692,-509.48740214,0.00026537,4]
[366817981,1750473048702,-490.0,0.00026537,4]
[366817982,1750473048711,-490.0,0.00026537,4]
[366817983,1750473048720,-507.1715118,0.00026537,4]
[366817984,1750473048730,-490.0,0.00026537,4]
[366817985,1750473048740,-506.20948248,0.00026537,4]
[366817986,1750473048750,-490.0,0.00026537,4]
[366817987,1750473048760,-490.0,0.00026537,4]
[366817988,1750473048769,-490.0,0.00026537,4]
[366817989,1750473048779,-490.0,0.00026537,4]
[366817990,1750473048789,-490.0,0.00026537,4]
[366817991,1750473048799,-492.82666721,0.00026537,4]
[366817992,1750473048809,-502.97,0.00026537,4]
[366817993,1750473048819,-490.0,0.00026537,4]
[366817994,1750473048829,-490.0,0.00026537,4]
[366817995,1750473048839,-490.0,0.00026537,4]
[366817996,1750473048850,-512.78328269,0.00026537,4]
[366817997,1750473048860,-505.41862019,0.00026537,4]
[366817998,1750473048870,-510.65119951,0.00026537,4]
[366817999,1750473048879,-502.83353572,0.00026537,4]
[366818000,1750473048889,-511.96199524,0.00026537,4]
[366818001,1750473048898,-490.0,0.00026537,4]
[366818002,1750473048909,-497.15225167,0.00026537,4]
[366818003,1750473048919,-490.0,0.00026537,4]
[366818004,1750473048929,-490.0,0.00026537,4]
[366818005,1750473048939,-490.0,0.00026537,4]
[366818006,1750473048948,-490.0,0.00026537,4]
[366818007,1750473048959,-490.0,0.00026537,4]
[366818008,1750473048968,-512.56829394,0.00026537,4]
[366818009,1750473048978,-493.81979744,0.00026537,4]
[366818010,1750473048989,-511.38443084,0.00026537,4]
[366818011,1750473048998,-490.0,0.00026537,4]
[366818012,1750473049008,-538.70886145,0.00026537,4]
[366818013,1750473049018,-490.0,0.00026537,4]
[366818014,1750473049028,-490.0,0.00026537,4]
[366818015,1750473049038,-490.0,0.00026537,4]
[366818016,1750473049048,-490.0,0.00026537,4]
[366818017,1750473049058,-490.0,0.00026538,4]
[366818018,1750473049068,-490.0,0.00026538,4]
[366818019,1750473049078,-490.0,0.00026538,4]
[366818020,1750473049088,-200.20727019,0.00026548,4]
[366818021,1750473049098,-490.0,0.00026548,4]
[366818022,1750473049107,-494.14176238,0.00026548,4]
[366818023,1750473049117,-502.04871968,0.00026548,4]
[366818024,1750473049127,-490.0,0.00026548,4]
[366818025,1750473049138,-490.0,0.00026548,4]
[366818026,1750473049148,-490.0,0.00026548,4]
[366818027,1750473049158,-490.0,0.00026548,4]
[366818028,1750473049168,-493.78967086,0.00026548,4]
[366818029,1750473049178,-490.0,0.00026548,4]
[366818030,1750473049188,-494.28949196,0.00026548,4]
[366818031,1750473049198,-490.0,0.00026548,4]
[366818032,1750473049208,-493.19765792,0.00026548,4]
[366818033,1750473049217,-502.02209775,0.00026548,4]
[366818034,1750473049228,-509.10275957,0.00026548,4]
[366818035,1750473049237,-499.67448979,0.00026548,4]
[366818036,1750473049247,-495.7673708,0.00026548,4]
[366818037,1750473049257,-500.32593787,0.00026548,4]
[366818038,1750473049267,-503.9571858,0.00026548,4]
[366818039,1750473049277,-498.9028812,0.00026548,4]
[366818040,1750473049287,-507.10828264,0.00026548,4]
[366818041,1750473049298,-511.02885007,0.00026548,4]
[366818042,1750473049308,-507.51746651,0.00026548,4]
[366818043,1750473049319,-493.09295381,0.00026548,4]
[366818044,1750473049332,-493.30091773,0.00026548,4]
[366818045,1750473049343,-518.00187341,0.00026548,4]
[366818046,1750473049353,-498.5052509,0.00026548,4]
[366818047,1750473049362,-154.03941944,0.00026548,4]
[366818048,1750473049372,-494.83349115,0.00026548,4]
[366818049,1750473049381,-301.39416024,0.00026548,4]
[366818050,1750473049391,-496.23093714,0.00026548,4]
[366818051,1750473049401,-510.89286196,0.00026548,4]
[366818052,1750473049410,-494.66292219,0.00026548,4]
[366818053,1750473049420,-506.55691112,0.00026548,4]
[366818054,1750473049429,-508.9338511,0.00026548,4]
[366818055,1750473049439,-504.6761941,0.00026548,4]
[366818056,1750473049450,-512.02309244,0.00026548,4]
[366818057,1750473049459,-490.0,0.00026548,4]
[366818058,1750473049469,-500.32800167,0.00026548,4]
[366818059,1750473049479,-503.14914423,0.00026548,4]
[366818060,1750473049488,-503.49109967,0.00026548,4]
[366818061,1750473049498,-490.0,0.00026548,4]
[366818062,1750473049508,-505.2902545,0.00026548,4]
[366818063,1750473049518,-497.31596849,0.00026548,4]
[366818064,1750473049527,-492.13100662,0.00026548,4]
[366818065,1750473049538,-505.55642614,0.00026548,4]
[366818066,1750473049548,-505.48349254,0.00026548,4]
[366818067,1750473049558,-490.97227528,0.00026548,4]
[366818068,1750473049568,-351.81646625,0.00026548,4]
[366818069,1750473049579,-490.0,0.00026548,4]
[366818070,1750473049589,-506.97743463,0.00026548,4]
[366818071,1750473049599,-497.7364523,0.00026548,4]
[366818072,1750473049609,-498.60439849,0.00026548,4]
[366818073,1750473049619,-463.99060765,0.00026548,4]
[366818074,1750473049630,-553.14553618,0.00026548,4]
[366818075,1750473049639,-514.63838212,0.00026548,4]
[366818076,1750473049649,-509.36774189,0.00026548,4]
[366818077,1750473049658,-231.64856411,0.00026548,4]
[366818078,1750473049668,-490.0,0.00026548,4]
[366818079,1750473049677,-490.0,0.00026548,4]
[366818080,1750473049687,-490.0,0.00026548,4]
[366818081,1750473049697,-502.36561184,0.00026548,4]
[366818082,1750473049707,-490.0,0.00026548,4]
[366818083,1750473049717,-490.0,0.00026548,4]
[366818084,1750473049727,-298.27773208,0.00026548,4]
[366818085,1750473049737,-490.0,0.00026548,4]
[366818086,1750473049747,-490.0,0.00026548,4]
[366818087,1750473049756,-490.0,0.00026548,4]
[366818088,1750473049766,-494.81892968,0.00026548,4]
[366818089,1750473049775,-490.0,0.00026548,4]
[366818090,1750473049785,-490.0,0.00026548,4]
[366818091,1750473049795,-490.0,0.00026548,4]
[366818092,1750473049805,-490.0,0.00026548,4]
[366818093,1750473049815,-499.33461764,0.00026548,4]
[366818094,1750473049825,-490.0,0.00026548,4]
[366818095,1750473049835,-493.02343544,0.00026548,4]
[366818096,1750473049845,-490.0,0.00026548,4]
[366818097,1750473049855,-499.68779042,0.00026548,4]
[366818098,1750473049865,-498.74984036,0.00026548,4]
[366818099,1750473049875,-490.0,0.00026548,4]
[366818100,1750473049887,-492.61111401,0.00026548,4]
[366818101,1750473049896,-490.0,0.00026548,4]
[366818102,1750473049906,-498.72326706,0.00026548,4]
[366818103,1750473049916,-492.55623804,0.00026548,4]
[366818104,1750473049926,-493.74626398,0.00026548,4]
[366818105,1750473049936,-493.23333458,0.00026548,4]
[366818106,1750473049952,-529.71523152,0.00026548,4]
[366818107,1750473049961,-507.30596224,0.00026548,4]
[366818108,1750473049971,-490.0,0.00026548,4]
[366818109,1750473049981,-492.3048159,0.00026548,4]
[366818110,1750473049991,-490.0,0.00026548,4]
[366818111,1750473050001,-490.0,0.00026548,4]
[366818112,1750473050012,-490.0,0.00026548,4]
[366818113,1750473050022,-501.42334034,0.00026548,4]
[366818114,1750473050033,-490.0,0.00026548,4]
[366818115,1750473050044,-500.48987038,0.00026548,4]
[366818116,1750473050054,-493.57824564,0.00026548,4]
[366818117,1750473050064,-490.0,0.00026548,4]
[366818118,1750473050074,-490.0,0.00026548,4]
[366818119,1750473050084,-490.0,0.00026548,4]
[366818120,1750473050094,-368.8653266,0.00026548,4]
[366818121,1750473050104,-490.0,0.00026548,4]
[366818122,1750473050115,-490.0,0.00026548,4]
[366818123,1750473050126,-490.0,0.00026548,4]
[366818124,1750473050136,-490.0,0.00026548,4]
[366818125,1750473050146,-490.0,0.00026548,4]
[366818126,1750473050156,-490.0,0.00026548,4]
[366818127,1750473050166,-490.0,0.00026548,4]
[366818128,1750473050176,-490.0,0.00026548,4]
[366818129,1750473050186,-501.77094478,0.00026548,4]
[366818130,1750473050196,-521.83842903,0.00026548,4]
[366818131,1750473050207,-490.0,0.00026548,4]
[366818132,1750473050217,-498.45969426,0.00026548,4]
[366818133,1750473050227,-490.0,0.00026548,4]
[366818134,1750473050237,-490.0,0.00026548,4]
[366818135,1750473050247,-490.0,0.00026548,4]
[366818136,1750473050257,-496.37132521,0.00026548,4]
[366818137,1750473050267,-490.0,0.00026548,4]
[366818138,1750473050278,-490.0,0.00026548,4]
[366818139,1750473050289,-490.0,0.00026548,4]
[366818140,1750473050299,-490.0,0.00026548,4]
[366818141,1750473050309,-490.0,0.00026548,4]
[366818142,1750473050319,-490.0,0.00026548,4]
[366818143,1750473050335,-490.0,0.00026548,4]
[366818144,1750473050345,-490.0,0.00026548,4]
[366818145,1750473050356,-490.0,0.00026548,4]
[366818146,1750473050367,-490.0,0.00026548,4]
[366818147,1750473050581,-490.0,0.00026548,4]
[366818148,1750473050592,-490.0,0.00026548,4]
[366818149,1750473050603,-490.0,0.00026548,4]
[366818150,1750473050613,-490.0,0.00026548,4]
[366818151,1750473050624,-490.0,0.00026548,4]
[366818152,1750473050635,-490.0,0.00026548,4]
[366818153,1750473050646,-490.0,0.00026548,4]
[366818154,1750473050656,-490.0,0.00026548,4]
[366818155,1750473050666,-490.0,0.00026548,4]
[366818156,1750473050677,-596.44708666,0.00026548,4]
[366818157,1750473050688,-490.0,0.00026548,4]
[366818158,1750473050698,-490.0,0.00026548,4]
[366818159,1750473050708,-490.0,0.00026548,4]
[366818160,1750473050718,-451.11997068,0.00026548,4]
[366818161,1750473050727,-490.0,0.00026548,4]
[366818162,1750473050738,-490.0,0.00026548,4]
[366818163,1750473050749,-606.14790687,0.00026548,4]
[366818164,1750473050760,-490.0,0.00026548,4]
[366818165,1750473050770,-490.0,0.00026548,4]
[366818166,1750473050780,-490.0,0.00026548,4]
[366818167,1750473050790,-490.0,0.00026548,4]
[366818168,1750473050800,-631.89018191,0.00026549,4]
[366818169,1750473050811,-490.10394294,0.00026549,4]
[366818170,1750473050821,-490.0,0.00026549,4]
[366818171,1750473050831,-490.0,0.00026549,4]
[366818172,1750473050841,-500.55082979,0.00026573,2]
[366818173,1750473050851,-327.36400534,0.00026589,2]
[366818174,1750473050862,-150.99,0.00026591,2]
[366818175,1750473050872,-199.0,0.00026592,2]
[366818176,1750473050882,-161.90690921,0.00026599,2]
[366818177,1750473050892,-729.80404624,0.00026599,2]
[366818178,1750473050902,-300.0,0.000266,9]
[366818179,1750473050913,-168.0,0.00026635,2]
[366818180,1750473050925,-168.0,0.00026667,2]
[366818181,1750473050935,-700.0,0.0002667,2]
[366818182,1750473050947,-986.13884443,0.0002667,2]
[366818183,1750473050958,-187.80641536,0.00026673,2]
[366818184,1750473050968,-171.69,0.00026676,2]
[366818185,1750473050978,-166704.44444521,0.00026684,2]
[366818186,1750473050988,-500.0,0.00026688,4]
[366818187,1750473050999,-200.426714,0.00026689,7]
[366818188,1750473051009,-151.0,0.00026689,7]
[366818189,1750473051020,-151.0,0.00026689,7]
[366818190,1750473051031,-202.721651,0.00026689,7]
[366818191,1750473051054,-202.721651,0.00026689,7]
[366818192,1750473051067,-151.0,0.00026689,7]
[366818193,1750473051079,-151.0,0.00026689,7]
[366818194,1750473051090,-151.0,0.00026689,7]
[366818195,1750473051101,-151.0,0.00026689,7]
[366818196,1750473051112,-341.75535079,0.0002669,2]
[366818197,1750473051124,-245.23088678,0.0002669,2]
[366818198,1750473051134,-157.292787,0.00026694,4]
[366818199,1750473051145,-170.434084,0.00026694,4]
[366818200,1750473051156,-623.923944,0.00026694,4]
[366818201,1750473051167,-207.974648,0.00026694,4]
[366818202,1750473051178,-561.441691,0.00026694,4]
[366818203,1750473051190,-1264.519146,0.00026694,4]
[366818204,1750473051200,-5379.55,0.00026699,2]
[366818205,1750473051211,-271.09,0.00026699,2]
[366818206,1750473051222,-201.383832,0.00026699,7]
[366818207,1750473051232,-151.0,0.00026699,7]
[366818208,1750473051244,-151.0,0.00026699,7]
[366818209,1750473051255,-151.0,0.00026699,7]
[366818210,1750473051265,-151.0,0.00026699,7]
[366818211,1750473051276,-151.0,0.00026699,7]
[366818212,1750473051287,-151.0,0.00026699,7]
[366818213,1750473051298,-277.986639,0.00026699,7]
[366818214,1750473051308,-151.0,0.00026699,7]
[366818215,1750473051319,-151.0,0.00026699,7]
[366818216,1750473051334,-151.0,0.00026699,7]
[366818217,1750473051344,-151.0,0.00026699,7]
[366818218,1750473051355,-500.0,0.00026699,4]
[366818219,1750473051365,-500.0,0.00026699,4]
[366818220,1750473051376,-500.0,0.00026699,4]
[366818221,1750473051387,-500.0,0.00026699,4]
[366818222,1750473051398,-500.0,0.00026699,4]
[366818223,1750473051410,-151.0,0.00026699,7]
[366818224,1750473051422,-233.324573,0.00026699,7]
[366818225,1750473051433,-233.324573,0.00026699,7]
[366818226,1750473051443,-151.0,0.00026699,7]
[366818227,1750473051457,-237.269862,0.00026699,7]
[366818228,1750473051468,-158.159954,0.00026699,7]
[366818229,1750473051479,-237.269862,0.00026699,7]
[366818230,1750473051490,-158.159954,0.00026699,7]
[366818231,1750473051501,-500.0,0.00026699,2]
[366818232,1750473051512,-500.0,0.00026699,2]
[366818233,1750473051523,-500.0,0.00026699,2]
[366818234,1750473051534,-500.0,0.00026699,2]
[366818235,1750473051546,-500.0,0.00026699,2]
[366818236,1750473051556,-346.39723701,0.00026699,2]
[366818237,1750473051567,-331.14799993,0.00026699,2]
[366818238,1750473051577,-500.0,0.00026699,2]
[366818239,1750473051587,-500.0,0.00026699,2]
[366818240,1750473051600,-500.0,0.00026699,2]
[366818241,1750473051611,-500.0,0.00026699,2]
[366818242,1750473051621,-500.0,0.00026699,2]
[366818243,1750473051632,-365.54917023,0.00026699,2]
[366818244,1750473051642,-500.0,0.00026699,2]
[366818245,1750473051652,-500.0,0.00026699,2]
[366818246,1750473051663,-482.13219368,0.00026699,2]
[366818247,1750473051674,-500.0,0.00026699,2]
[366818248,1750473051684,-500.0,0.00026699,2]
[366818249,1750473051694,-502.64263485,0.00026699,2]
[366818250,1750473051705,-500.0,0.00026699,2]
[366818251,1750473051716,-562.297472,0.00026699,7]
[366818252,1750473051726,-562.297472,0.00026699,7]
[366818253,1750473051737,-213.464028,0.00026699,7]
[366818254,1750473051748,-213.464028,0.00026699,7]
[366818255,1750473051758,-151.0,0.00026699,7]
[366818256,1750473051768,-151.0,0.00026699,7]
[366818257,1750473051779,-228.981112,0.00026699,7]
[366818258,1750473051791,-228.981112,0.00026699,7]
[366818259,1750473051802,-151.0,0.00026699,7]
[366818260,1750473051812,-151.0,0.00026699,7]
[366818261,1750473051831,-151.0,0.00026699,7]
[366818262,1750473051841,-193.061799,0.00026699,7]
[366818263,1750473051851,-1648.0,0.00026699,2]
[366818264,1750473051862,-11715.55784555,0.00026699,5]
[366818265,1750473051872,-47299.27037505,0.00026699,5]
[366818266,1750473072185,-186.43762853,0.00023522,2]
[366818268,1750473133270,-186.43762853,0.00022522,2]
[366818269,1750473360943,151.0,0.00021634,2]
[366818270,1750473446410,321.0,0.0002192,2]
[366818271,1750473446714,321.0,0.0002101,2]
[366818272,1750473491724,207.0,0.00021522,2]
[366818273,1750473603554,942.0,0.00021522,2]
[366818274,1750473706110,250.0,0.00015,2]
[366818275,1750473852653,-186.43762853,0.00022195,2]
[366818276,1750474016508,173.38,0.00019806,2]
[366818277,1750474043071,3084.76647693,0.00021627,2]
[366818278,1750474043093,20000.0,0.00021627,2]
[366818279,1750474043115,1105.15081019,0.00021627,2]
[366818280,1750474074306,1291.0,0.000247,120]
[366818281,1750474075083,449.0,0.000247,120]
[366818282,1750474077336,426.37809289,0.000247,120]
[366818283,1750474102258,1874.0,0.000247,120]
[366818284,1750474113709,153.84,0.00013699,2]
[366818285,1750474113938,153.84,0.00020187,2]
[366818288,1750474132819,561.0,0.000247,120]
[366818289,1750474193032,497.0,0.000247,120]
[366818290,1750474211679,207.0,0.00021195,2]
[366818294,1750474232267,-300.0,0.00022264,2]
[366818295,1750474232278,-300.0,0.00022333,2]
[366818296,1750474232292,-3238.04593019,0.00022471,2]
[366818297,1750474232304,-321.0,0.0002284,2]
[366818298,1750474232315,-207.0,0.00022959,4]
[366818299,1750474232326,-23.02625218,0.0002375,2]
[366818300,1750474232343,-297.97374782,0.0002375,2]
[366818301,1750474232354,-300.0,0.00024413,2]
[366818302,1750474232366,-401.74370966,0.00024413,2]
[366818303,1750474232379,-798.25629034,0.00024413,2]
[366818304,1750474232389,-300.0,0.00024414,2]
[366818305,1750474232400,-250.0,0.00024414,2]
[366818306,1750474232411,-300.0,0.00024414,2]
[366818307,1750474232422,-250.0,0.00024414,2]
[366818308,1750474232432,-9.53876442,0.00024465,7]
[366818309,1750474232449,-181.46123558,0.00024465,7]
[366818310,1750474232459,-300.0,0.0002449,2]
[366818311,1750474232469,-250.0,0.0002449,2]
[366818312,1750474232479,-600.0,0.000246,4]
[366818313,1750474232489,-321.0,0.0002467,2]